Workbook

Sheet Sentez
P1: =PI()/180 -> 0.01745329252
B2: a1 | C2: 0 | D2: =+C2*D_R -> 0 | E2: d1 | F2: 0 | G2: 0 | K2: Determine the coefficients of the quartic equation using FivePos Function
B3: a2 | C3: 30 | D3: =+C3*D_R -> 0.5235987756 | E3: d2 | F3: -5 | G3: 105 | K3: c0 | L3: c1 | M3: c2 | N3: c3
B4: a3 | C4: 0 | D4: =+C4*D_R -> 0 | E4: d3 | F4: 40 | G4: 115 | K4: =Fivepos(F3:G3,F4:G4,F5:G5,F6:G6,D3,D4,D5,D6) -> -0.1825357126 | L4: -2.610649727 | M4: -0.6427167229 | N4: 12.11297115 | Z4: Example is from the Paper
B5: a4 | C5: -50 | D5: =+C5*D_R -> -0.872664626 | E5: d4 | F5: 60 | G5: 80 | K5: Determine the roots of the quartic equation using Quartic function
B6: a5 | C6: -75 | D6: =+C6*D_R -> -1.308996939 | E6: d5 | F6: 15 | G6: 65 | K6: t1 | L6: t2 | M6: t3 | N6: t4
K7: =quartic(1,N4,M4,L4,K4) -> 0.5109929455 | L7: -0.07302885342 | M7: -0.4026459484 | N7: -12.14828929
K9: b41 | L9: b42 | N9: -Z | P9: R
H10: b21 | I10: =ATAN2((1-K7^2),2*K7) -> 0.9448064813 | K10: =Burmester($F$3:$G$3,$F$4:$G$4,$F$5:$G$5,$D$3,$D$4,$D$5,I10) -> 1.651803926 | L10: 5.595010549 | N10: =ThreePosition_Basic2(D3,D5,F3:G3,F5:G5,I10,K10) -> -59.79818705 | O10: -81.98895514 | P10: -122.0286266 | Q10: 4.112936888 | S10: aZ | T10: =Basic.mag(AA3,AB3) -> 0
I11: =I10/D_R -> 54.13342383 | K11: =K10/D_R -> 94.64139355 | L11: =L10/D_R -> 320.5704908 | N11: =ThreePosition_Basic2(D3,D5,F3:G3,F5:G5,I10,L10) -> 356.452062 | O11: -133.9263832 | P11: 68.86614984 | Q11: 30.56002104 | S11: aR | T11: =Basic.mag(AA4,AB4) -> 0
S12: aRZ | T12: =Basic.mag((AA4-AA3),(AB4-AB3)) -> 0
H15: b22 | I15: =ATAN2((1-L7^2),2*L7) -> -0.1457988822 | K15: =Burmester($F$3:$G$3,$F$4:$G$4,$F$5:$G$5,$D$3,$D$4,$D$5,I15) -> 5.991617927 | L15: 5.11262465 | N15: =ThreePosition_Basic2(D3,D5,F3:G3,F5:G5,I15,K15) -> -69.39638331 | O15: -37.09381352 | P15: 457.3798393 | Q15: -155.863804 | S15: aZ | T15: =Basic.mag(AA6,AB6) -> 0
I16: =I15/D_R -> -8.353660611 | K16: =K15/D_R -> 343.2944197 | L16: =L15/D_R -> 292.9318147 | N16: =ThreePosition_Basic2(D3,D5,F3:G3,F5:G5,I15,L15) -> -145.1085083 | O16: 22.81991953 | P16: 57.61820618 | Q16: 16.76280144 | S16: aR | T16: =Basic.mag(AA7,AB7) -> 0
I17: =360+I16 -> 351.6463394 | L17: =L16-360 -> -67.06818532 | S17: aRZ | T17: =Basic.mag((AA7-AA6),(AB7-AB6)) -> 0
H19: b23 | I19: =ATAN2((1-M7^2),2*M7) -> -0.7655705679 | K19: =Burmester($F$3:$G$3,$F$4:$G$4,$F$5:$G$5,$D$3,$D$4,$D$5,I19) -> 5.083669973 | L19: 4.414262652 | N19: =ThreePosition_Basic2(D3,D5,F3:G3,F5:G5,I19,K19) -> -43.14854242 | O19: -30.44923969 | P19: 73.51682407 | Q19: -6.571975863 | S19: aZ | T19: =Basic.mag(N19,O19) -> 52.81053788
I20: =I19/D_R -> -43.86396246 | K20: =K19/D_R -> 291.2728339 | L20: =L19/D_R -> 252.9186196 | N20: =ThreePosition_Basic2(D3,D5,F3:G3,F5:G5,I19,L19) -> -65.46520951 | O20: 2.775227989 | P20: 25.00523399 | Q20: 35.76376938 | S20: aR | T20: =Basic.mag(P19,Q19) -> 73.80998772
I21: =360+I20 -> 316.1360375 | K21: =K20-360 -> -68.72716611 | L21: =L20-360 -> -107.0813804 | S21: aRZ | T21: =Basic.mag((P19-N19),(Q19-O19)) -> 119.0837162
H23: b24 | I23: =ATAN2((1-N7^2),2*N7) -> -2.977330762 | K23: =Burmester($F$3:$G$3,$F$4:$G$4,$F$5:$G$5,$D$3,$D$4,$D$5,I23) -> 3.999691584 | L23: 0.9614478787 | N23: =ThreePosition_Basic2(D3,D5,F3:G3,F5:G5,I23,K23) -> -1.060248402 | O23: -84.05304206 | P23: 22.28729229 | Q23: -27.71740404
I24: =I23/D_R -> -170.5884869 | K24: =K23/D_R -> 229.1654471 | L24: =L23/D_R -> 55.08690567 | N24: =ThreePosition_Basic2(D3,D5,F3:G3,F5:G5,I23,L23) -> 55.23233696 | O24: 15.5522357 | P24: 50.5168799 | Q24: 81.64891642 | S24: aZ | T24: =Basic.mag(N24,O24) -> 57.38016278
I25: =360+I24 -> 189.4115131 | S25: aR | T25: =Basic.mag(P24,Q24) -> 96.01302363
S26: aRZ | T26: =Basic.mag((P24-N24),(Q24-O24)) -> 66.26467186
N29: R | O29: -0.19256 | P29: -0.70302 | Q29: 2.655110179 | R29: 3.864309899 | S29: -2.187755642 | T29: 5.085047608
N30: -Z | O30: -0.00812 | P30: -0.40349
N31: -Z | O31: 0.30342 | P31: 0.25012
N32: R | O32: -0.38784 | P32: 0.4637

Sheet Analiz
B1: 0 | C1: 0 | P1: =PI()/180 -> 0.01745329252
A2: -Z1 | B2: =Sentez!AA3 -> 0 | C2: =Sentez!AB3 -> 0 | D2: b3 | E2: =Basic.mag(B2,C2) -> 0 | G2: a1 | H2: =Basic.mag((B6-B3),(C6-C3)) -> 0 | I2: a1 | J2: =ATAN2((B3-B6),(C3-C6)) ->  | K2: =J2/D_R ->  | M2: =Sentez!X3 -> 0 | N2: 0.5
A3: R1 | B3: =Sentez!AA4 -> 0 | C3: =Sentez!AB4 -> 0 | G3: a2 | H3: =Basic.mag((B5-B6),(C5-C6)) -> 0 | I3: q120 | J3: =ATAN2((B5-B6),(C5-C6)) ->  | K3: =J3/D_R ->  | M3: =Sentez!X4 -> 0 | N3: =Sentez!Y4 -> 0
B4: 0 | C4: 0 | G4: a4 | H4: =Basic.mag((B2-B3),(C2-C3)) -> 0 | I4: q130 | J4: =ATAN2((B2-B5),(C2-C5)) ->  | K4: =J4/D_R ->  | M4: 0.5 | N4: =Sentez!Y5 -> 0
A5: -Z2 | B5: =Sentez!AA6 -> 0 | C5: =Sentez!AB6 -> 0 | D5: c3 | E5: =Basic.mag(B5,C5) -> 0 | G5: a3 | H5: =Basic.mag((B2-B5),(C2-C5)) -> 0 | I5: q3 | J5: =ATAN2(B5,C5) ->  | K5: =J5/D_R -> 
A6: R2 | B6: =Sentez!AA7 -> 0 | C6: =Sentez!AB7 -> 0 | I6: b3 | J6: =PI()-J5+J4 ->  | M6: =Sentez!X13 -> 0 | N6: =Sentez!Y13 -> 0
A7: -Z1 | B7: =B2 -> 0 | C7: =C2 -> 0 | F7: q140 | G7: =ATAN2((B2-B3),(C2-C3)) ->  | H7: =G7/D_R ->  | J7: =J4/D_R ->  | K7: =360-128 -> 232 | M7: =Sentez!X14 -> 0 | N7: =Sentez!Y14 -> 0
A8: -Z2 | B8: =B5 -> 0 | C8: =C5 -> 0 | E8: =B6-B3 -> 0 | F8: =C6-C3 -> 0 | H8: =360+H7 ->  | J8: =J5/D_R ->  | M8: =Sentez!X15 -> 0 | N8: =Sentez!Y15 -> 0
H9: =H8-J7 ->  | J9: =J6/D_R -> 
J10: =J2/D_R ->  | M10: =Sentez!X21 -> 0 | N10: =Sentez!Y21 -> 0
A11: q12 | B11: sx | C11: sy | D11: s | E11: f | F11: y | G11: m | J11: =J3/D_R ->  | M11: =Sentez!X22 -> 0 | N11: =Sentez!Y22 -> 0
A12: =J11+A13 ->  | B12: =B6-B3+H3*COS(A12*D_R) ->  | C12: =C6-C3+H3*SIN(A12*D_R) ->  | D12: =Basic.mag(C12,B12) ->  | E12: =ATAN2(B12,C12) ->  | F12: =angcos(D12,H4,H5) ->  | G12: =angcos(H4,H5,D12) ->  | I12: A0 | J12: =B6 -> 0 | K12: =C6 -> 0 | M12: =Sentez!X23 -> 0 | N12: =Sentez!Y23 -> 0
A13: 125 | C13: q13 | D13: q14 | I13: A | J13: =J12+H3*COS(A12*D_R) ->  | K13: =K12+H3*SIN(A12*D_R) -> 
C14: =D14-G12 ->  | D14: =E12-F12 ->  | E14: =E12/D_R ->  | I14: B | J14: =J21+H4*COS(D14) ->  | K14: =K21+H4*SIN(D14) ->  | M14: =Sentez!X29 -> 0 | N14: =Sentez!Y29 -> 0
C15: =C14+2*PI() ->  | D15: =D14/D_R ->  | I15: P | J15: =J13+E5*COS(C14-J6) ->  | K15: =K13+E5*SIN(C14-J6) ->  | M15: =Sentez!X30 -> 0 | N15: =Sentez!Y30 -> 0
C16: =C15/D_R ->  | I16: A | J16: =J13 ->  | K16: =K13 ->  | M16: =Sentez!X31 -> 0 | N16: =Sentez!Y31 -> 0
I18: P | J18: =J15 ->  | K18: =K15 ->  | M18: =Sentez!X37 -> 0 | N18: =Sentez!Y37 -> 0
I19: Q | J19: =J18+0.5*COS(C14-J6+PI()-J5) ->  | K19: =K18+0.5*SIN(C14-J6+PI()-J5) ->  | M19: =Sentez!X38 -> 0 | N19: =Sentez!Y38 -> 0
I20: B | J20: =J14 ->  | K20: =K14 ->  | M20: =Sentez!X39 -> 0 | N20: =Sentez!Y39 -> 0
I21: B0 | J21: =B3 -> 0 | K21: =C3 -> 0

Sheet Sheet1
